fUSD/lending_fUSD_20241225
["ID","MTS","AMOUNT","RATE_DAILY","PERIOD"]
[346617608,1735127456363,-500.0,0.00011886,2]
[346617609,1735127456373,-500.0,0.00011886,2]
[346617610,1735127456383,-500.0,0.00011886,2]
[346617611,1735127456392,-1793.93,0.00011886,2]
[346617612,1735127456402,-1761.25,0.00011886,2]
[346617613,1735127456411,-500.0,0.00011886,2]
[346617614,1735127456421,-610.53,0.00011886,2]
[346617615,1735127456431,-671.69,0.00011886,2]
[346617616,1735127456440,-500.0,0.00011886,2]
[346617617,1735127456450,-500.0,0.00011886,2]
[346617618,1735127456460,-500.0,0.00011886,2]
[346617619,1735127456470,-2899.28,0.00011886,2]
[346617620,1735127456480,-500.0,0.00011886,2]
[346617621,1735127456491,-500.0,0.00011886,2]
[346617622,1735127456500,-548.76,0.00011886,2]
[346617623,1735127456510,-2172.9,0.00011886,2]
[346617624,1735127456519,-500.0,0.00011886,2]
[346617625,1735127456529,-500.0,0.00011886,2]
[346617626,1735127456538,-500.0,0.00011886,2]
[346617627,1735127456548,-500.0,0.00011886,2]
[346617628,1735127456558,-500.0,0.00011886,2]
[346617629,1735127456568,-1309.3,0.00011886,2]
[346617630,1735127456580,-500.0,0.00011886,2]
[346617631,1735127456589,-759.69,0.00011886,2]
[346617632,1735127456598,-500.0,0.00011886,2]
[346617633,1735127456608,-6709.46,0.00011886,2]
[346617634,1735127456618,-500.0,0.00011886,2]
[346617635,1735127456628,-245.21612086,0.00011886,2]
[346617636,1735127456637,-500.0,0.00011886,2]
[346617637,1735127456646,-500.0,0.00011886,2]
[346617638,1735127456656,-500.0,0.00011886,2]
[346617639,1735127456666,-500.0,0.00011886,2]
[346617640,1735127456675,-500.0,0.00011886,2]
[346617641,1735127456684,-500.0,0.00011886,2]
[346617642,1735127456694,-500.0,0.00011886,2]
[346617643,1735127456703,-500.0,0.00011886,2]
[346617644,1735127456712,-500.0,0.00011886,2]
[346617645,1735127456722,-500.0,0.00011886,2]
[346617646,1735127456731,-500.0,0.00011886,2]
[346617647,1735127456744,-209.72937629,0.00011996,2]
[346617648,1735127456753,-500.0,0.00011996,2]
[346617649,1735127456763,-500.0,0.00011996,2]
[346617650,1735127456773,-500.0,0.00011996,2]
[346617651,1735127456783,-548.72,0.00011996,2]
[346617652,1735127456792,-500.0,0.00011996,2]
[346617653,1735127456802,-500.0,0.00011996,2]
[346617654,1735127456812,-500.0,0.00011996,2]
[346617655,1735127456822,-500.0,0.00011996,2]
[346617656,1735127456832,-500.0,0.00011996,2]
[346617657,1735127456842,-500.0,0.00011996,2]
[346617658,1735127456851,-500.0,0.00011996,2]
[346617659,1735127456860,-500.0,0.00011996,2]
[346617660,1735127456870,-516.07,0.00011996,2]
[346617661,1735127456880,-500.0,0.00011996,2]
[346617662,1735127456889,-500.0,0.00011996,2]
[346617663,1735127456899,-500.0,0.00011996,2]
[346617664,1735127456908,-500.0,0.00011996,2]
[346617665,1735127456918,-500.0,0.00011996,2]
[346617666,1735127456927,-629.62,0.00011996,2]
[346617667,1735127456937,-500.0,0.00011996,2]
[346617668,1735127456947,-500.82,0.00011996,2]
[346617669,1735127456956,-500.0,0.00011996,2]
[346617670,1735127456965,-500.0,0.00011996,2]
[346617671,1735127456975,-868.96,0.00011996,2]
[346617672,1735127456984,-500.0,0.00011996,2]
[346617673,1735127456995,-614.43,0.00011996,2]
[346617674,1735127457006,-500.0,0.00011996,2]
[346617675,1735127457015,-500.0,0.00011996,2]
[346617676,1735127457024,-522.15921303,0.00011996,2]
[346617677,1735127457034,-500.0,0.00011996,2]
[346617678,1735127457043,-500.0,0.00011996,2]
[346617679,1735127457053,-500.0,0.00011996,2]
[346617680,1735127457063,-500.0,0.00011996,2]
[346617681,1735127457072,-500.0,0.00011996,2]
[346617682,1735127457082,-500.0,0.00011996,2]
[346617683,1735127457092,-500.0,0.00011996,2]
[346617684,1735127457101,-500.0,0.00011996,2]
[346617685,1735127457110,-536.85,0.00011996,2]
[346617686,1735127457120,-500.0,0.00011996,2]
[346617687,1735127457129,-500.0,0.00011996,2]
[346617688,1735127457140,-500.0,0.00011996,2]
[346617689,1735127457150,-500.0,0.00011996,2]
[346617690,1735127457159,-500.0,0.00011996,2]
[346617691,1735127457168,-500.0,0.00011996,2]
[346617692,1735127457178,-500.0,0.00011996,2]
[346617693,1735127457187,-653.26,0.00011996,2]
[346617694,1735127457197,-500.0,0.00011996,2]
[346617695,1735127457206,-500.0,0.00011996,2]
[346617696,1735127457215,-500.0,0.00011996,2]
[346617697,1735127457225,-500.0,0.00011996,2]
[346617698,1735127457235,-500.0,0.00011996,2]
[346617699,1735127457245,-811.95,0.00011996,2]
[346617700,1735127457254,-660.43,0.00011996,2]
[346617701,1735127457264,-500.0,0.00011996,2]
[346617702,1735127457274,-853.07,0.00011996,2]
[346617703,1735127457283,-882.1,0.00011996,2]
[346617704,1735127457293,-500.0,0.00011996,2]
[346617705,1735127457305,-1100.96,0.00011996,2]
[346617706,1735127457317,-266.77598768,0.00011996,2]
[346617707,1735127457328,-635.49,0.00011996,2]
[346617708,1735127457338,-500.0,0.00011996,2]
[346617709,1735127457348,-659.11,0.00011996,2]
[346617710,1735127457358,-2784.47,0.00011996,2]
[346617711,1735127457367,-560.83,0.00011996,2]
[346617712,1735127457377,-529.17,0.00011996,2]
[346617713,1735127457387,-1887.14,0.00011996,2]
[346617714,1735127457397,-500.0,0.00011996,2]
[346617715,1735127457406,-500.0,0.00011996,2]
[346617716,1735127457416,-1073.5,0.00011996,2]
[346617717,1735127457426,-923.69,0.00011996,2]
[346617718,1735127457436,-500.0,0.00011996,2]
[346617719,1735127457446,-871.16,0.00011996,2]
[346617720,1735127457455,-871.29,0.00011996,2]
[346617721,1735127457464,-997.59,0.00011996,2]
[346617722,1735127457474,-500.0,0.00011996,2]
[346617723,1735127457484,-500.0,0.00011996,2]
[346617724,1735127457497,-500.0,0.00011996,2]
[346617725,1735127457506,-1899.52,0.00011996,2]
[346617726,1735127457516,-1011.4,0.00011996,2]
[346617727,1735127457525,-500.0,0.00011996,2]
[346617728,1735127457535,-1356.28,0.00011996,2]
[346617729,1735127457544,-612.88,0.00011996,2]
[346617730,1735127457555,-500.0,0.00011996,2]
[346617731,1735127457566,-500.0,0.00011996,2]
[346617732,1735127457578,-1419.61,0.00011996,2]
[346617733,1735127457588,-1207.47,0.00011996,2]
[346617734,1735127457597,-500.0,0.00011996,2]
[346617735,1735127457607,-500.0,0.00011996,2]
[346617736,1735127457618,-500.0,0.00011996,2]
[346617737,1735127457627,-543.33,0.00011996,2]
[346617738,1735127457636,-500.0,0.00011996,2]
[346617739,1735127457646,-500.0,0.00011996,2]
[346617740,1735127457657,-366.31099761,0.00011996,2]
[346617741,1735127457666,-500.0,0.00011996,2]
[346617742,1735127457676,-500.0,0.00011996,2]
[346617743,1735127457685,-500.0,0.00011996,2]
[346617744,1735127457695,-500.0,0.00011996,2]
[346617745,1735127457705,-500.0,0.00011996,2]
[346617746,1735127457714,-500.0,0.00011996,2]
[346617747,1735127457723,-824.81,0.00011996,2]
[346617748,1735127457733,-500.0,0.00011996,2]
[346617749,1735127457744,-1040.1,0.00011996,2]
[346617750,1735127457753,-500.0,0.00011996,2]
[346617751,1735127457764,-872.12,0.00011996,2]
[346617752,1735127457773,-584.82,0.00011996,2]
[346617753,1735127457783,-8999.999999,0.00012,2]
[346617754,1735127457792,-332.024,0.0001203,2]
[346617755,1735127457802,-479.01587159,0.00012042,2]
[346617756,1735127457812,-16786.06,0.00012087,2]
[346617757,1735127457822,-29334.98,0.00012087,2]
[346617758,1735127457832,-500.0,0.00012105,2]
[346617759,1735127457841,-742.98,0.00012105,2]
[346617760,1735127457851,-992.77,0.00012105,2]
[346617761,1735127457861,-2012.95,0.00012105,2]
[346617762,1735127457871,-1891.68,0.00012105,2]
[346617763,1735127457880,-16159.23,0.00012105,2]
[346617764,1735127457890,-1453.31,0.00012105,2]
[346617765,1735127457900,-761.63,0.00012105,2]
[346617766,1735127457910,-545.79,0.00012105,2]
[346617767,1735127457920,-1354.29,0.00012105,2]
[346617768,1735127457930,-14537.19,0.00012105,2]
[346617769,1735127457939,-500.0,0.00012105,2]
[346617770,1735127457949,-1480.31,0.00012105,2]
[346617771,1735127457958,-1290.32,0.00012105,2]
[346617772,1735127457969,-596.39,0.00012105,2]
[346617773,1735127457979,-2589.36,0.00012105,2]
[346617774,1735127457989,-500.0,0.00012105,2]
[346617775,1735127457998,-500.0,0.00012105,2]
[346617776,1735127458007,-1000.0,0.00012105,2]
[346617777,1735127458016,-1079.04,0.00012105,2]
[346617778,1735127458025,-656.4,0.00012105,2]
[346617779,1735127458035,-500.0,0.00012106,2]
[346617780,1735127458045,-500.0,0.00012106,2]
[346617781,1735127458054,-520.55,0.00012106,2]
[346617782,1735127458064,-500.0,0.00012106,2]
[346617783,1735127458073,-500.0,0.00012106,2]
[346617784,1735127458083,-500.0,0.00012106,2]
[346617785,1735127458093,-500.0,0.00012106,2]
[346617786,1735127458102,-563.72,0.00012106,2]
[346617787,1735127458111,-500.0,0.00012106,2]
[346617788,1735127458121,-500.0,0.00012106,2]
[346617789,1735127458131,-500.0,0.00012106,2]
[346617790,1735127458141,-500.0,0.00012106,2]
[346617791,1735127458150,-500.0,0.00012106,2]
[346617792,1735127458160,-500.0,0.00012106,2]
[346617793,1735127458169,-500.0,0.00012106,2]
[346617794,1735127458179,-500.0,0.00012106,2]
[346617795,1735127458189,-500.0,0.00012106,2]
[346617796,1735127458198,-553.83,0.00012106,2]
[346617797,1735127458207,-500.0,0.00012106,2]
[346617798,1735127458216,-500.0,0.00012106,2]
[346617799,1735127458226,-613.47,0.00012106,2]
[346617800,1735127458236,-595.49,0.00012106,2]
[346617801,1735127458247,-500.0,0.00012106,2]
[346617802,1735127458256,-500.0,0.00012106,2]
[346617803,1735127458266,-208.19630147,0.00012106,2]
[346617804,1735127458275,-500.0,0.00012106,2]
[346617805,1735127458285,-1086.12,0.00012106,2]
[346617806,1735127458294,-500.0,0.00012106,2]
[346617807,1735127458303,-705.77,0.00012106,2]
[346617808,1735127458312,-500.0,0.00012106,2]
[346617809,1735127458322,-500.0,0.00012106,2]
[346617810,1735127458331,-500.0,0.00012106,2]
[346617811,1735127458340,-573.15,0.00012106,2]
[346617812,1735127458350,-500.0,0.00012106,2]
[346617813,1735127458359,-500.0,0.00012106,2]
[346617814,1735127458368,-500.0,0.00012106,2]
[346617815,1735127458378,-500.0,0.00012106,2]
[346617816,1735127458387,-500.0,0.00012106,2]
[346617817,1735127458397,-500.0,0.00012106,2]
[346617818,1735127458407,-500.0,0.00012106,2]
[346617819,1735127458416,-500.0,0.00012106,2]
[346617820,1735127458426,-500.0,0.00012106,2]
[346617821,1735127458435,-500.0,0.00012106,2]
[346617822,1735127458444,-500.0,0.00012106,2]
[346617823,1735127458454,-500.0,0.00012106,2]
[346617824,1735127458463,-500.0,0.00012106,2]
[346617825,1735127458734,-500.0,0.00012106,2]
[346617826,1735127458757,-500.0,0.00012106,2]
[346617827,1735127458767,-652.22,0.00012106,2]
[346617828,1735127458777,-500.0,0.00012106,2]
[346617829,1735127458787,-500.0,0.00012106,2]
[346617830,1735127458798,-647.3,0.00012106,2]
[346617831,1735127458808,-500.0,0.00012106,2]
[346617832,1735127458817,-971.03,0.00012106,2]
[346617833,1735127458827,-500.0,0.00012106,2]
[346617834,1735127458836,-159.77239593,0.00012106,2]
[346617835,1735127458846,-500.0,0.00012106,2]
[346617836,1735127458856,-500.0,0.00012106,2]
[346617837,1735127458865,-608.5,0.00012106,2]
[346617838,1735127458875,-500.0,0.00012106,2]
[346617839,1735127458885,-500.0,0.00012106,2]
[346617840,1735127458895,-500.0,0.00012106,2]
[346617841,1735127458905,-321.88844168,0.00012106,2]
[346617842,1735127458914,-500.0,0.00012106,2]
[346617843,1735127458924,-548.75,0.00012106,2]
[346617844,1735127458933,-500.0,0.00012106,2]
[346617845,1735127458943,-500.0,0.00012106,2]
[346617846,1735127458953,-500.0,0.00012106,2]
[346617847,1735127458963,-535.06,0.00012106,2]
[346617848,1735127458973,-500.0,0.00012106,2]
[346617849,1735127458983,-500.0,0.00012106,2]
[346617850,1735127458993,-500.0,0.00012106,2]
[346617851,1735127459002,-500.0,0.00012106,2]
[346617852,1735127459011,-537.48,0.00012106,2]
[346617853,1735127459021,-513.93442963,0.00012106,2]
[346617854,1735127459030,-509.17,0.00012106,2]
[346617855,1735127459039,-500.0,0.00012106,2]
[346617856,1735127459049,-500.0,0.00012106,2]
[346617857,1735127459058,-500.0,0.00012106,2]
[346617858,1735127459069,-500.0,0.00012106,2]
[346617859,1735127459078,-500.0,0.00012106,2]
[346617860,1735127459088,-560.69,0.00012106,2]
[346617861,1735127459098,-500.0,0.00012106,2]
[346617862,1735127459108,-500.0,0.00012106,2]
[346617863,1735127459118,-840.12,0.00012106,2]
[346617864,1735127459128,-500.0,0.00012106,2]
[346617865,1735127459138,-500.0,0.00012106,2]
[346617866,1735127459147,-500.0,0.00012106,2]
[346617867,1735127459157,-500.0,0.00012106,2]
[346617868,1735127459166,-500.0,0.00012106,2]
[346617869,1735127459175,-500.0,0.00012106,2]
[346617870,1735127459185,-693.24,0.00012106,2]
[346617871,1735127459194,-500.0,0.00012106,2]
[346617872,1735127459204,-500.0,0.00012106,2]
[346617873,1735127459213,-629.87,0.00012106,2]
[346617874,1735127459224,-816.1,0.00012106,2]
[346617875,1735127459233,-500.0,0.00012106,2]
[346617876,1735127459244,-776.37,0.00012106,2]
[346617877,1735127459254,-500.0,0.00012106,2]
[346617878,1735127459265,-500.0,0.00012106,2]
[346617879,1735127459274,-500.0,0.00012106,2]
[346617880,1735127459283,-500.0,0.00012106,2]
[346617881,1735127459293,-506.99,0.00012106,2]
[346617882,1735127459303,-500.0,0.00012106,2]
[346617883,1735127459312,-500.0,0.00012106,2]
[346617884,1735127459322,-719.32,0.00012106,2]
[346617885,1735127459332,-500.0,0.00012106,2]
[346617886,1735127459341,-503.97,0.00012106,2]
[346617887,1735127459351,-500.0,0.00012106,2]
[346617888,1735127459361,-500.0,0.00012106,2]
[346617889,1735127459370,-500.0,0.00012106,2]
[346617890,1735127459381,-799.41,0.00012106,2]
[346617891,1735127459390,-500.0,0.00012106,2]
[346617892,1735127459399,-500.0,0.00012106,2]
[346617893,1735127459409,-828.69,0.00012106,2]
[346617894,1735127459418,-1353.54,0.00012106,2]
[346617895,1735127459428,-500.0,0.00012106,2]
[346617896,1735127459437,-500.0,0.00012106,2]
[346617897,1735127459447,-500.0,0.00012106,2]
[346617898,1735127459456,-883.71,0.00012106,2]
[346617899,1735127459466,-500.0,0.00012106,2]
[346617900,1735127459475,-500.0,0.00012106,2]
[346617901,1735127459484,-871.34,0.00012106,2]
[346617902,1735127459496,-500.0,0.00012106,2]
[346617903,1735127459505,-500.0,0.00012106,2]
[346617904,1735127459515,-500.0,0.00012106,2]
[346617905,1735127459524,-500.0,0.00012106,2]
[346617906,1735127459534,-500.0,0.00012106,2]
[346617907,1735127459543,-564.78,0.00012106,2]
[346617908,1735127459553,-500.0,0.00012106,2]
[346617909,1735127459563,-500.0,0.00012106,2]
[346617910,1735127459576,-2087.65,0.00012106,2]
[346617911,1735127459585,-500.0,0.00012106,2]
[346617912,1735127459594,-500.0,0.00012106,2]
[346617913,1735127459604,-500.0,0.00012106,2]
[346617914,1735127459615,-500.0,0.00012106,2]
[346617915,1735127459625,-500.0,0.00012106,2]
[346617916,1735127459634,-765.7,0.00012106,2]
[346617917,1735127459645,-500.0,0.00012106,2]
[346617918,1735127459656,-500.0,0.00012106,2]
[346617919,1735127459665,-500.0,0.00012106,2]
[346617920,1735127459675,-500.0,0.00012106,2]
[346617921,1735127459685,-500.0,0.00012106,2]
[346617922,1735127459695,-500.0,0.00012106,2]
[346617923,1735127459704,-500.0,0.00012106,2]
[346617924,1735127459714,-500.0,0.00012106,2]
[346617925,1735127459724,-500.0,0.00012106,2]
[346617926,1735127459733,-500.0,0.00012106,2]
[346617927,1735127459744,-500.0,0.00012106,2]
[346617928,1735127459754,-877.6,0.00012106,2]
[346617929,1735127459764,-500.0,0.00012106,2]
[346617930,1735127459774,-500.0,0.00012106,2]
[346617931,1735127459784,-500.0,0.00012106,2]
[346617932,1735127459793,-960.19,0.00012106,2]
[346617933,1735127459803,-3471.41,0.00012106,2]
[346617934,1735127459814,-500.0,0.00012106,2]
[346617935,1735127459824,-500.0,0.00012106,2]
[346617936,1735127459833,-566.44,0.00012106,2]
[346617937,1735127459843,-500.0,0.00012106,2]
[346617938,1735127459852,-770.63,0.00012106,2]
[346617939,1735127459862,-1343.6,0.00012106,2]
[346617940,1735127459871,-500.0,0.00012106,2]
[346617941,1735127459881,-680.0,0.00012106,2]
[346617942,1735127459892,-1183.51,0.00012106,2]
[346617943,1735127459902,-500.0,0.00012106,2]
[346617944,1735127459913,-500.0,0.00012106,2]
[346617945,1735127459922,-1182.22,0.00012106,2]
[346617946,1735127459932,-670.59,0.00012106,2]
[346617947,1735127459942,-500.0,0.00012106,2]
[346617948,1735127459951,-500.0,0.00012106,2]
[346617949,1735127459961,-500.0,0.00012106,2]
[346617950,1735127459970,-5360.85,0.00012106,2]
[346617951,1735127459980,-576.57,0.00012106,2]
[346617952,1735127459989,-500.0,0.00012106,2]
[346617953,1735127459999,-500.0,0.00012106,2]
[346617954,1735127460008,-1223.6,0.00012106,2]
[346617955,1735127460019,-500.0,0.00012106,2]
[346617956,1735127460029,-500.0,0.00012106,2]
[346617957,1735127460039,-500.0,0.00012106,2]
[346617958,1735127460049,-563.31,0.00012106,2]
[346617959,1735127460059,-500.0,0.00012106,2]
[346617960,1735127460069,-500.0,0.00012106,2]
[346617961,1735127460079,-500.0,0.00012106,2]
[346617962,1735127460089,-500.0,0.00012106,2]
[346617963,1735127460098,-500.0,0.00012106,2]
[346617964,1735127460108,-500.0,0.00012106,2]
[346617965,1735127460117,-3239.46,0.00012106,2]
[346617966,1735127460126,-500.0,0.00012106,2]
[346617967,1735127460136,-500.0,0.00012106,2]
[346617968,1735127460145,-684.04,0.00012106,2]
[346617969,1735127460155,-500.0,0.00012107,2]
[346617970,1735127460165,-500.0,0.00012107,2]
[346617971,1735127460175,-500.0,0.00012107,2]
[346617972,1735127460184,-500.0,0.00012107,2]
[346617973,1735127460194,-500.0,0.00012107,2]
[346617974,1735127460203,-538.33,0.00012107,2]
[346617975,1735127460213,-598.88243563,0.00012107,2]
[346617976,1735127460223,-683.15,0.00012107,2]
[346617977,1735127460233,-510.99,0.00012107,2]
[346617978,1735127460244,-1663.82,0.00012107,2]
[346617979,1735127460254,-609.52,0.00012107,2]
[346617980,1735127460264,-1003.15,0.00012107,2]
[346617981,1735127460274,-500.0,0.00012107,2]
[346617982,1735127460283,-500.0,0.00012107,2]
[346617983,1735127460293,-1248.44,0.00012107,2]
[346617984,1735127460302,-500.0,0.00012107,2]
[346617985,1735127460312,-500.0,0.00012107,2]
[346617986,1735127460321,-638.36,0.00012107,2]
[346617987,1735127460332,-500.0,0.00012107,2]
[346617988,1735127460342,-500.0,0.00012107,2]
[346617989,1735127460351,-500.0,0.0001216,2]
[346617990,1735127460361,-500.0,0.0001216,2]
[346617991,1735127460371,-500.0,0.0001216,2]
[346617992,1735127460381,-500.0,0.0001216,2]
[346617993,1735127460390,-500.0,0.0001216,2]
[346617994,1735127460400,-500.0,0.0001216,2]
[346617995,1735127460410,-500.0,0.0001216,2]
[346617996,1735127460420,-500.0,0.0001216,2]
[346617997,1735127460430,-500.0,0.0001216,2]
[346617998,1735127460441,-168.16933389,0.0001216,2]
[346617999,1735127460451,-500.0,0.0001216,2]
[346618000,1735127460462,-928.86,0.0001216,2]
[346618001,1735127460471,-833.33,0.0001216,2]
[346618002,1735127460481,-500.0,0.0001216,2]
[346618003,1735127460491,-500.0,0.0001216,2]
[346618004,1735127460501,-896.31,0.0001216,2]
[346618005,1735127460510,-2655.7,0.0001216,2]
[346618006,1735127460520,-757.29,0.0001216,2]
[346618007,1735127460529,-500.0,0.0001216,2]
[346618008,1735127460539,-500.0,0.0001216,2]
[346618009,1735127460549,-4923.35,0.0001216,2]
[346618010,1735127460558,-572.89,0.0001216,2]
[346618011,1735127460569,-500.0,0.0001216,2]
[346618012,1735127460582,-525.33,0.0001216,2]
[346618013,1735127460592,-543.83,0.0001216,2]
[346618014,1735127460601,-243.094773,0.0001216,2]
[346618015,1735127460611,-632.78,0.0001216,2]
[346618016,1735127460620,-500.0,0.0001216,2]
[346618017,1735127460629,-500.0,0.0001216,2]
[346618018,1735127460639,-219.681786,0.0001216,2]
[346618019,1735127460650,-1569.97,0.0001216,2]
[346618020,1735127460660,-832.91,0.0001216,2]
[346618021,1735127460670,-500.0,0.0001216,2]
[346618022,1735127460680,-500.0,0.0001216,2]
[346618023,1735127460690,-500.0,0.0001216,2]
[346618024,1735127460700,-456.61713165,0.0001216,2]
[346618025,1735127460711,-500.0,0.0001216,2]
[346618026,1735127460721,-1793.93,0.0001216,2]
[346618027,1735127460730,-1761.25,0.0001216,2]
[346618028,1735127460740,-500.0,0.0001216,2]
[346618029,1735127460750,-610.53,0.0001216,2]
[346618030,1735127460760,-671.69,0.0001216,2]
[346618031,1735127460769,-500.0,0.0001216,2]
[346618032,1735127460779,-355.33703248,0.0001216,2]
[346618033,1735127460789,-500.0,0.0001216,2]
[346618034,1735127460799,-2899.28,0.0001216,2]
[346618035,1735127460809,-500.0,0.0001216,2]
[346618036,1735127460819,-500.0,0.0001216,2]
[346618037,1735127460828,-548.76,0.0001216,2]
[346618038,1735127460838,-2172.9,0.0001216,2]
[346618039,1735127460848,-500.0,0.0001216,2]
[346618040,1735127460858,-500.0,0.0001216,2]
[346618041,1735127460868,-214.3057395,0.0001216,2]
[346618042,1735127460877,-500.0,0.0001216,2]
[346618043,1735127460887,-500.0,0.0001216,2]
[346618044,1735127460897,-1309.3,0.0001216,2]
[346618045,1735127460907,-500.0,0.0001216,2]
[346618046,1735127460916,-759.69,0.0001216,2]
[346618047,1735127460926,-500.0,0.0001216,2]
[346618048,1735127460935,-6709.46,0.0001216,2]
[346618049,1735127460944,-500.0,0.0001216,2]
[346618050,1735127460954,-500.0,0.0001216,2]
[346618051,1735127460964,-500.0,0.0001216,2]
[346618052,1735127460973,-500.0,0.0001216,2]
[346618053,1735127460983,-500.0,0.0001216,2]
[346618054,1735127460993,-500.0,0.0001216,2]
[346618055,1735127461003,-500.0,0.0001216,2]
[346618056,1735127461013,-500.0,0.0001216,2]
[346618057,1735127461023,-500.0,0.0001216,2]
[346618058,1735127461033,-500.0,0.0001216,2]
[346618059,1735127461042,-500.0,0.0001216,2]
[346618060,1735127461052,-500.0,0.0001216,2]
[346618061,1735127461062,-976.98,0.00012192,2]
[346618062,1735127461072,-436.21,0.00012192,2]
[346618063,1735127461081,-500.0,0.0001227,2]
[346618064,1735127461091,-500.0,0.0001227,2]
[346618065,1735127461100,-500.0,0.0001227,2]
[346618066,1735127461109,-548.72,0.0001227,2]
[346618067,1735127461179,-500.0,0.0001227,2]
[346618068,1735127461188,-500.0,0.0001227,2]
[346618069,1735127461197,-500.0,0.0001227,2]
[346618070,1735127461206,-500.0,0.0001227,2]
[346618071,1735127461216,-500.0,0.0001227,2]
[346618072,1735127461225,-500.0,0.0001227,2]
[346618073,1735127461235,-500.0,0.0001227,2]
[346618074,1735127461245,-500.0,0.0001227,2]
[346618075,1735127461254,-516.07,0.0001227,2]
[346618076,1735127461264,-500.0,0.0001227,2]
[346618077,1735127461273,-500.0,0.0001227,2]
[346618078,1735127461283,-500.0,0.0001227,2]
[346618079,1735127461292,-500.0,0.0001227,2]
[346618080,1735127461301,-500.0,0.0001227,2]
[346618081,1735127461312,-629.62,0.0001227,2]
[346618082,1735127461322,-500.0,0.0001227,2]
[346618083,1735127461331,-500.82,0.0001227,2]
[346618084,1735127461341,-500.0,0.0001227,2]
[346618085,1735127461350,-500.0,0.0001227,2]
[346618086,1735127461359,-868.96,0.0001227,2]
[346618087,1735127461369,-500.0,0.0001227,2]
[346618088,1735127461379,-614.43,0.0001227,2]
[346618089,1735127461388,-500.0,0.0001227,2]
[346618090,1735127461399,-574.52624159,0.0001227,2]
[346618091,1735127461408,-500.0,0.0001227,2]
[346618092,1735127461418,-500.0,0.0001227,2]
[346618093,1735127461427,-500.0,0.0001227,2]
[346618094,1735127461436,-500.0,0.0001227,2]
[346618095,1735127461445,-500.0,0.0001227,2]
[346618096,1735127461455,-500.0,0.0001227,2]
[346618097,1735127461464,-500.0,0.0001227,2]
[346618098,1735127461473,-500.0,0.0001227,2]
[346618099,1735127461483,-536.85,0.0001227,2]
[346618100,1735127461493,-500.0,0.0001227,2]
[346618101,1735127461503,-500.0,0.0001227,2]
[346618102,1735127461512,-500.0,0.0001227,2]
[346618103,1735127461521,-500.0,0.0001227,2]
[346618104,1735127461532,-500.0,0.0001227,2]
[346618105,1735127461541,-500.0,0.0001227,2]
[346618106,1735127461551,-500.0,0.0001227,2]
[346618107,1735127461561,-653.26,0.0001227,2]